Workbook

Sheet Girls
A1: Jeevan Vidya Boarding, Nandurbar
A2: Budget for 30 Tribal Girls Boarding
A3: No | B3: Item | C3: Amt | D3: Total
A4: 1 | B4: Food & Nutrition
B5: Rs. 50/- per day including breakfast, fruit, lunch, snack, dinner
B6: Annual food + nutrition expense: Rs. 50 x 30 girls x 30 days x 10 months | C6: =50*30*30*10 -> 450000
D7: =C6 -> 450000
A8: 2 | B8: Text books, Note books, Stationary, Newspaper
B9: i) @Rs. 500 per girl x 30 girls | C9: =500*30 -> 15000
B10: ii) Library books = Rs. 25000/- | C10: 25000
D11: =SUM(C9:C10) -> 40000
A12: 3 | B12: Personality Development, Family life education, Value education, Sex Education & Counseling
B13: i) @ Rs. 2000/- Honorarium and Travel per resources person x 12 sessions | C13: =2000*12 -> 24000
D14: =C13 -> 24000
A15: 5 | B15: Empowering the girls to face the present situation.
B16: i) Legal Education- Women related laws – Resource person Honorarium + Travel @ Rs. 1500 x 5 sessions. | C16: =1500*5 -> 7500
B17: ii) Sports items | C17: 10000
B18: iii) Educational Excursion | C18: 30000
B19: iv) Leadership skills | C19: 5000
B20: v) Yoga Training Teacher: @ Rs. 500/- per day x 20 days | C20: =500*20 -> 10000
D21: =SUM(C16:C20) -> 62500
A22: Life coping Skills
A23: 7 | B23: Agriculture : Organic Farming, Wormy compost, Kitchen garden
B24: i) Demonstration by resource person Honorarium + Travel @Rs. 1200/- x 5 Sessions | C24: =1200*5 -> 6000
B25: ii) Tailoring classes
B26: Instructor's Honorarium + Travel for 40 days @ Rs. 500/- | C26: =500*40 -> 20000
D27: =SUM(C23:C26) -> 26000
A28: 9 | B28: Computer teacher :
B29: i) Salary of Instructor @ Rs. 1000/-per month x 10 months | C29: =1000*10 -> 10000
D30: =SUM(C29) -> 10000
A31: 10 | B31: Tutorials Maths, English & Marathi
B32: i) Language & Maths tutorial 2 @ Rs.2000/- per month x 5 months | C32: =2000*2*5 -> 20000
D33: =SUM(C31:C32) -> 20000
A34: 11 | B34: Medical Expenses | C34: 5000
D35: =C34 -> 5000
A36: 13 | B36: Staff :
B37: i) Hostel warden @ Rs. 5000/- per month x 12 months | C37: =5000*12 -> 60000
B38: ii) 2 cooks @ Rs. 5000/-per month x 12 months | C38: =5000*2*12 -> 120000
B39: iv) Gardener cum watchman @Rs. 2000/- per month x 12 months | C39: =2000*12 -> 24000
D40: =SUM(C37:C39) -> 204000
A41: 14 | B41: Annual Celebration :
B42: i) 15th August & 26th January @Rs. 25per girl: 30 x 2 | C42: =(25*30)*2 -> 1500
B43: Major Festivals:
B44: ii) Deepawali, Rakshabandhan, Holi, Pola, Christmas @ Rs. 25 per girl: 30 x 5 | C44: =(25*30)*5 -> 3750
B45: iii) Parents Day @Rs. 100/- for 60 parents | C45: =100*60 -> 6000
B46: iv) Sports Day & Prizes | C46: 5000
D47: =SUM(C42:C46) -> 16250
A48: 15 | B48: Infrastructure :
B49: i) Utensils / Smoke less chula | C49: 30000
B50: ii) Electricity | C50: 30000
B51: iii) Maintenance | C51: 10000
B52: iv) Bicycles @Rs. 3500/- x 10 | C52: =3500*10 -> 35000
B53: v) Swing machine @ Rs. 6500/- x 6 | C53: =6500*6 -> 39000
D54: =SUM(C49:C53) -> 144000
A55: 18 | B55: Solar Lantern system @Rs. 3900/- x 5 | C55: =3900*5 -> 19500
D56: =C55 -> 19500
A57: Grand Total | D57: =SUM(D4:D56) -> 1021250
